Cogmind - Beta 16 --- EXPLORER MODE // 2026.01.05 @ 11:30:54 Player: K.K.Y. Result: Destroyed by H-66 Slayer with Gauss Rifle Performance ------------- Evolutions (4) 2000 Regions Visited (6) 1200 Robots Destroyed (99) 495 Value Destroyed (3555) 3555 Prototype IDs (22) 440 Alien Tech Used (0) 0 Bonus (1845) 1845 TOTAL SCORE: 9535 Bonus ------- Follower Combat Kills 99 Delivered SUBCON Basin 2000 Friendly Fire -254 Cogmind --------- Core Integrity 0/850 Matter 54/300 Energy 12/100 System Corruption 4% Temperature Cool (0) Movement Core (750) Ox14 Location -6/Factory Parts ------- > --- POWER (2) -------- (None) > --- PROPULSION (5) --- (None) > --- UTILITY (7) ------ High-capacity Storage Unit Core Analyzer Armor Integrity Analyzer Advanced ECM Suite Tech Extrapolator > --- WEAPON (2) ------- (None) > --- INVENTORY (20) --- Improved Trap Scanner Improved Signal Interpreter Improved Hacking Suite Authchip [R/Combat] Authchip [R/Combat] Authchip [R/Combat] Authchip [R/Combat] Authchip [Device] Authchip [Device] Authchip [Processor] Authchip [Weapon] Makeshift System Restoration Module Improved Datajack Multitool Peak State ------------ > --- POWER ------------ Light Angular Momentum Engine Light Fission Core > --- PROPULSION ------- Medium Treads Medium Treads Improved Medium Treads Improved Medium Treads Improved Medium Treads > --- UTILITY ---------- Improved Heat Sink High-capacity Storage Unit Structural Scanner Machine Analyzer Hardened Medium Armor Plating Makeshift Light Armor Plating Tech Extrapolator > --- WEAPON ----------- Bore Cannon Heavy Pick > --- INVENTORY -------- Fission Core Improved Signal Interpreter Hardened Medium Armor Plating Authchip [R/Combat] Authchip [R/Combat] Authchip [R/Combat] Authchip [R/Combat] Authchip [Device] Authchip [Device] Authchip [Processor] Authchip [Weapon] Makeshift System Restoration Module Arc Projector Plasma Rifle Proton Cannon Heavy Particle Cannon Heavy Particle Cannon Heavy Particle Cannon Improved Datajack Multitool [Rating: 71] Favorites ----------- Power Makeshift Power Source Engine Makeshift Power Source Power Core Light Fission Core Reactor Cold Fusion Reactor Propulsion Light Treads Treads Light Treads Utility High-capacity Storage Unit Device Structural Scanner Storage High-capacity Storage Unit Processor Tech Extrapolator Protection Light Armor Plating Weapon Bore Cannon Energy Gun Makeshift Laser Energy Cannon Subdweller Beam Cannon Ballistic Gun Gauss Rifle Ballistic Cannon Bore Cannon Special Weapon Mining Laser Piercing Weapon Heavy Pick Build | -11 -10 -10 -10 -8 -8 -6 ------- Run | Yrd Mat Min Sub Rec Scr Fac Slots Evolved 9 | . 1 . . . . 8 Power 1 | . . . . . . 1 Propulsion 3 | . . . . . . 3 Utility 5 | . 1 . . . . 4 Weapon . | . . . . . . . Parts Attached 62 | 7 4 2 13 2 1 33 Power 10 | 1 . . 3 . . 6 Engine 7 | 1 . . 3 . . 3 Core 2 | . . . . . . 2 Reactor 1 | . . . . . . 1 Propulsion 12 | 2 . 1 2 1 . 6 Treads 12 | 2 . 1 2 1 . 6 Leg . | . . . . . . . Wheel . | . . . . . . . Hover . | . . . . . . . Flight . | . . . . . . . Utility 19 | 2 1 1 4 1 . 10 Device 7 | . 1 . 2 . . 4 Storage 3 | 1 . 1 1 . . . Processor 4 | . . . . 1 . 3 Hackware . | . . . . . . . Protection 5 | 1 . . 1 . . 3 Artifact . | . . . . . . . Weapon 21 | 2 3 . 4 . 1 11 Energy Gun 5 | . 1 . 1 . . 3 Energy Cannon 7 | . 1 . 2 . . 4 Ballistic Gun 4 | 2 . . . . . 2 Ballistic Cannon 2 | . . . 1 . . 1 Launcher . | . . . . . . . Special Weapon 2 | . 1 . . . . 1 Impact Weapon . | . . . . . . . Slashing Weapon . | . . . . . . . Piercing Weapon 1 | . . . . . 1 . Special Melee Weapon . | . . . . . . . Unidentified Prototypes 2 | . . . 1 . . 1 Parts Lost 32 | . . . 6 . . 26 Power 5 | . . . 1 . . 4 Propulsion 8 | . . . 3 . . 5 Utility 7 | . . . . . . 7 Weapon 12 | . . . 2 . . 10 Highest Loss Streak 13 | . . . 2 . . 13 To Critical Strikes 2 | . . . 2 . . . Average Backups 14 | 2 6 10 15 14 19 19 Power 1 | . . 1 1 . . . Propulsion . | . 1 1 1 . . . Utility 9 | . 3 6 8 10 12 11 Weapon 2 | . 1 1 2 3 4 5 Tool/Special . | . . . . . . . Unused Backups 29 | . . 1 11 1 1 15 Power 3 | . . . 2 1 . . Propulsion 2 | . . 1 1 . . . Utility 16 | . . . 4 . . 12 Weapon 5 | . . . 4 . . 1 Tool/Special 3 | . . . . . 1 2 Average Slot Usage (%) 93 | . 96 100 93 99 99 76 Engine 11 | . 12 12 11 12 12 5 Treads 21 | . 25 25 19 25 25 18 Device 16 | . 8 12 21 15 12 8 Storage 11 | . 12 12 12 12 12 6 Processor 4 | . . . . 9 12 17 Protection 4 | . 12 12 3 . . 3 Energy Gun 5 | . 9 . 9 . . 1 Energy Cannon 7 | . 7 11 5 17 7 . Ballistic Cannon 5 | . . . 7 6 12 3 Special Weapon 1 | . 2 12 . . . . Peak Build Rating 71 | 7 9 10 36 36 33 71 Average Rating 25 | 4 7 9 21 29 30 55 On Entrance 17 | . 7 9 10 36 29 33 Avg Prop Armor Cover (%) . | . . . . . . . Naked Turns . | . . . . . . . Heaviest Build 86 | 21 24 53 63 62 62 86 Greatest Support 146 | 40 40 40 40 43 43 146 Greatest Overweight (x) 26 | 3 . 1 3 1 1 26 Average Overweight (x) 1 | . . . 1 1 1 1 Largest Inventory Capacity 20 | 10 10 20 20 20 20 20 Average Capacity 19 | 8 10 19 20 20 20 20 Most Carried 20 | 6 10 12 20 20 20 20 Average Carried 16 | 2 6 11 17 17 19 19 Final Capacity 20 | 10 10 20 20 20 20 20 Final Carried 20 | 2 10 12 20 20 20 14 Class Distribution -------------------- 45% | Hacker-Mutant 29% | Derelict-Mutant 19% | Commander-Mutant 6% | Scavenger-Mutant Dominant Class ---------------- Hacker-Mutant | -10/Materials Hacker-Mutant | -10/Mines Derelict-Mutant | -10/Subcaves Commander-Mutant | -8/Recycling Commander-Mutant | -8/Scraptown Scavenger-Mutant | -6/Factory Resources | -11 -10 -10 -10 -8 -8 -6 ----------- Run | Yrd Mat Min Sub Rec Scr Fac Matter Collected 2277 | 278 136 30 885 44 . 904 Remotely . | . . . . . . . Salvage Created 3848 | 111 640 121 444 133 . 2399 Parts 184 | 9 33 4 27 5 . 106 Haulers Intercepted 2 | . 2 . . . . . Recyclers Shooed 4 | . . 1 . . . 3 Parts Field Recycled . | . . . . . . . Retrieved Matter . | . . . . . . . Parts Self-Destructed . | . . . . . . . Prevented . | . . . . . . . Parts Restored . | . . . . . . . Kills | -11 -10 -10 -10 -8 -8 -6 ------- Run | Yrd Mat Min Sub Rec Scr Fac Combat Hostiles Destroyed 70 | . 8 6 13 2 . 41 Guns 26 | . 4 . 7 . . 15 Cannons 41 | . 4 6 6 1 . 24 AOE 2 | . . . . . . 2 Classes Destroyed 17 | 2 5 1 4 . . 5 Worker 10 | . . 1 . . . 9 Builder 3 | . 2 . . 1 . . Tunneler 1 | 1 . . . . . . Hauler 2 | . 2 . . . . . Recycler 5 | 1 2 . . . . 2 Turret 2 | . . . 2 . . . Watcher 5 | . 3 . . . . 2 Swarmer 12 | . 2 2 6 . . 2 Grunt 31 | . 6 4 . 1 . 20 Brawler 1 | . . . . . . 1 Duelist 1 | . . . . . . 1 Sentry 5 | . . . 1 1 . 3 Specialist 1 | . . . . . . 1 Hunter 8 | . . . . . . 8 Programmer 5 | . . . . . . 5 Artisan 3 | . . . 3 . . . Subdweller 6 | . . . 6 . . . Thug 1 | . . . . . . 1 Best Kill Streak 10 | 2 4 2 6 2 . 10 Combat Bots Only 6 | . 2 2 4 1 . 6 Max Kills in Single Turn 10 | 1 1 1 1 1 . 10 Gunslinging 1 | . . . . . . 1 Exploded 2 | . . . . . . 2 Melee . | . . . . . . . Uniques/NPCs Destroyed . | . . . . . . . Combat | -11 -10 -10 -10 -8 -8 -6 -------- Run | Yrd Mat Min Sub Rec Scr Fac Hostile Shots Fired 894 | . 34 34 151 6 . 669 Missed 286 | . 12 8 52 . . 214 Hits 608 | . 22 26 99 6 . 455 Melee 1 | . . . . . . 1 Projectile 607 | . 22 26 99 6 . 454 AOE 8 | . . . 2 5 . 1 Critical Strikes 14 | . . . 3 . . 11 Damage Taken 5460 | . 177 181 718 171 . 4213 Core 1054 | . 29 58 70 34 . 863 Absorbed by Shields 8 | . . . . 8 . . Ignored by Resistances 3396 | . 115 118 446 105 . 2612 Core Remaining (%) 61 | 100 . . . . 23 . Volleys Fired 407 | 2 49 19 159 5 . 173 Largest 2 | 2 2 2 2 2 . 2 Hottest 160 | 40 150 160 160 160 . 150 Shots Fired 645 | 4 91 29 282 8 . 231 Gun 304 | 4 66 . 129 . . 105 Cannon 312 | . 21 19 138 8 . 126 Launcher . | . . . . . . . Special 29 | . 4 10 15 . . . Kinetic 303 | 4 48 . 100 2 . 149 Thermal 332 | . 43 29 182 6 . 72 Explosive . | . . . . . . . Electromagnetic 10 | . . . . . . 10 Robot Hit Streak 23 | 4 12 9 23 6 . 20 Robot Miss Streak 3 | . 2 1 1 1 . 3 Penetration Max 1 | . . . . . . 1 Secondary Targets 6 | . 2 . . . . 4 Max Gunslinging Chain 1 | . 1 . . . . 1 Shots Hit Robots 357 | 4 63 20 72 5 . 193 Core Hits 175 | 4 29 10 26 3 . 103 Critical Kills 18 | . 1 . 3 1 . 13 Critical Parts Destroyed 24 | . . . . . . 24 Critical Strikes 57 | . 3 . 8 2 . 44 Burn 10 | . 2 . 5 . . 3 Meltdown 2 | . . . 1 1 . . Destroy 43 | . 1 . 2 1 . 39 Blast 1 | . . . . . . 1 Corrupt 1 | . . . . . . 1 Melee Attacks 4 | . . . . . . 4 Impact . | . . . . . . . Slashing . | . . . . . . . Piercing 4 | . . . . . . 4 Sneak Attacks . | . . . . . . . Combat Hostiles . | . . . . . . . Follow-up Attacks . | . . . . . . . Damage Inflicted 8402 | 37 801 416 1050 160 . 5938 Guns 3068 | 37 515 . 533 . . 1983 Cannons 3832 | . 262 245 493 158 . 2674 Explosions 1213 | . . . . . . 1213 Melee 68 | . . . . . . 68 Ramming 29 | . . 27 . 2 . . Kinetic 3405 | 37 353 . 157 27 . 2831 Thermal 4525 | . 448 389 893 131 . 2664 Explosive 73 | . . . . . . 73 Electromagnetic 302 | . . . . . . 302 Impact . | . . . . . . . Slashing . | . . . . . . . Piercing 68 | . . . . . . 68 Highest Corruption 4 | . . . . . . 4 Average Corruption 2 | . . . . . . 2 Corruption Purged . | . . . . . . . Corruption Blocked . | . . . . . . . Effects 15 | . . . . . . 15 Message Errors 4 | . . . . . . 4 Matter Fused 5 | . . . . . . 5 Heat Flow Errors 3 | . . . . . . 3 Parts Rejected 1 | . . . . . . 1 Alerts 2 | . . . . . . 2 Overload Shots . | . . . . . . . Overflow Damage 86 | . . . . 11 . 75 Projectiles 34 | . . . . 11 . 23 Explosions 52 | . . . . . . 52 Melee . | . . . . . . . Knockbacks 15 | . . . 1 . . 14 Impact . | . . . . . . . Kinetic 15 | . . . 1 . . 14 Secondary . | . . . . . . . Self-Inflicted Damage 27 | . . . . . . 27 Shots 2 | . . . . . . 2 Rammed 8 | . . 7 . 1 . . Targets Rammed 9 | . . 8 . 1 . . Kicked . | . . . . . . . Crushed 1 | . . 1 . . . . Highest Temperature 553 | 6 285 179 486 278 . 553 Average Temperature 139 | 4 57 81 186 120 . 187 Received Heat Transfer 2151 | . 117 135 237 21 . 1641 Effects 29 | . 1 . 2 . . 26 Shutdowns 6 | . . . 1 . . 5 Energy Bleed 8 | . . . . . . 8 Interference 9 | . 1 . . . . 8 Short Circuit 2 | . . . 1 . . 1 Damage (major) 4 | . . . . . . 4 Siege Activations . | . . . . . . . Martial Activations . | . . . . . . . Shielding Activations . | . . . . . . . Robots Disrupted . | . . . . . . . Combat Hostiles . | . . . . . . . Robots Corrupted . | . . . . . . . Combat Hostiles . | . . . . . . . Parts Fried 1 | . . . . . . 1 Impact Corruptions . | . . . . . . . Robots Melted 3 | . 1 . 1 1 . . Combat Hostiles 1 | . . . . 1 . . Parts Melted 18 | . 5 . 7 1 . 5 Heat Transferred 8967 | . 1234 818 2640 185 . 4090 Parts Sabotaged . | . . . . . . . Parts Stolen . | . . . . . . . Parts Stripped . | . . . . . . . Power Chain Reactions . | . . . . . . . Alert | -11 -10 -10 -10 -8 -8 -6 ------- Run | Yrd Mat Min Sub Rec Scr Fac Maximum Alert Level 1 | . . . . . . 1 Low Security (%) 98 | 100 100 100 . 100 . 96 Level 1 1 | . . . . . . 3 Level 2 . | . . . . . . . Level 3 . | . . . . . . . Level 4 . | . . . . . . . Level 5 . | . . . . . . . High Security . | . . . . . . . Max Security . | . . . . . . . Peak Influence 286 | 10 50 50 . 26 . 286 Initial . | . . . . . . . Average 15 | 1 4 2 . . . 51 Influence Increases 2128 | 10 286 160 235 115 . 1322 Destroy 0b10 Robot/C 1380 | . 160 120 180 100 . 820 Destroy 0b10 Robot/NC 130 | 10 45 5 . 5 . 65 Destroy Leader 274 | . 50 30 10 . . 184 Allied During Kill 5 | . . . . 5 . . Successful Hack 63 | . 28 . . 3 . 32 Disable Machine 88 | . . 4 . . . 84 Destroy Structure 98 | . 3 1 . 2 . 92 Lose Combat Pursuer 90 | . . . 45 . . 45 Influence Decreases 2102 | 10 286 160 235 115 . 1296 Time Decay 1809 | 10 263 160 235 115 . 1026 Lost Part 260 | . . . . . . 260 Lost Ally 10 | . . . . . . 10 Purge Threat 23 | . 23 . . . . . Squads Dispatched 9 | . . . . . . 9 Investigation 3 | . . . . . . 3 Extermination 3 | . . . . . . 3 Reinforcement 3 | . . . . . . 3 Assault . | . . . . . . . Garrison . | . . . . . . . Intercept . | . . . . . . . Searches Triggered . | . . . . . . . Construction Impeded 1 | . . . . . . 1 Haulers Reinforced 2 | . . . . . . 2 Active Scanning Responses . | . . . . . . . Cargo Convoy Interrupts 1 | . . . . . . 1 Stealth | -11 -10 -10 -10 -8 -8 -6 --------- Run | Yrd Mat Min Sub Rec Scr Fac Distress Signals 3 | . 1 . . . . 2 Communications Jammed . | . . . . . . . Distress Signals . | . . . . . . . Times Spotted 107 | . 14 6 23 4 . 60 Peak Tracking Total 7 | . 2 2 6 2 . 7 Tactical Retreats 4 | . . . 1 . . 3 Traps | -11 -10 -10 -10 -8 -8 -6 ------- Run | Yrd Mat Min Sub Rec Scr Fac Traps Triggered 3 | . 1 . 1 . . 1 Indirectly . | . . . . . . . Trap Hack Attempts . | . . . . . . . Triggered . | . . . . . . . Disarmed . | . . . . . . . Reprogrammed . | . . . . . . . Reused . | . . . . . . . Traps Extracted . | . . . . . . . Installed . | . . . . . . . Triggered . | . . . . . . . Machines | -11 -10 -10 -10 -8 -8 -6 ---------- Run | Yrd Mat Min Sub Rec Scr Fac Machines Disabled 25 | . . 1 3 . . 21 Max in Single Turn 17 | . . 1 1 . . 17 Machines Repaired . | . . . . . . . Machines Dismantled . | . . . . . . . Machines Sabotaged . | . . . . . . . Overloaded Fab Kills . | . . . . . . . Hacking | -11 -10 -10 -10 -8 -8 -6 --------- Run | Yrd Mat Min Sub Rec Scr Fac Machines Accessed 24 | . 8 . 4 8 . 4 Terminals 16 | . 8 . . 4 . 4 Fabricators . | . . . . . . . Repair Stations . | . . . . . . . Recycling Units 4 | . . . . 4 . . Scanalyzers . | . . . . . . . Garrison Access . | . . . . . . . Total Hacks 72 | . 31 . 9 18 . 14 Successful 51 | . 25 . 9 10 . 7 Failed 21 | . 6 . . 8 . 7 Catastrophic 2 | . . . . . . 2 Database Lockouts . | . . . . . . . Manual 43 | . 29 . . 9 . 5 Terminals 53 | . 31 . . 8 . 14 Fabricators . | . . . . . . . Repair Stations . | . . . . . . . Recycling Units 10 | . . . . 10 . . Scanalyzers . | . . . . . . . Garrison Access . | . . . . . . . Terminal Hacks 32 | . 17 . 9 . . 6 Record 6 | . . . 6 . . . Part Schematic 5 | . . . . . . 5 Robot Schematic 1 | . . . . . . 1 Prototype ID Bank 15 | . 15 . . . . . Open Door 1 | . . . 1 . . . Unreport Threat 1 | . 1 . . . . . Locate Traps 1 | . 1 . . . . . Proto ID Catalog 1 | . . . 1 . . . Release Object 1 | . . . 1 . . . Fabricator Hacks . | . . . . . . . Repair Station Hacks . | . . . . . . . Recycling Unit Hacks 3 | . . . . 3 . . Retrieve Components 3 | . . . . 3 . . Scanalyzer . | . . . . . . . Garrison Access Hacks . | . . . . . . . Unauthorized Hacks 14 | . 8 . . 5 . 1 Terminals 13 | . 8 . . 4 . 1 Botnet 13 | . 8 . . 4 . 1 Fabricators . | . . . . . . . Repair Stations . | . . . . . . . Recycling Units 1 | . . . . 1 . . Reject 1 | . . . . 1 . . Scanalyzers . | . . . . . . . Garrison Access . | . . . . . . . Data Cores Recovered . | . . . . . . . Used . | . . . . . . . Hacking Detections 17 | . 7 . . 6 . 4 Full Trace Events 6 | . 1 . . 2 . 3 Feedback Events . | . . . . . . . Feedback Blocked . | . . . . . . . Robot Schematics Acquired 1 | . . . . . . 1 Robots Built . | . . . . . . . Authchips . | . . . . . . . Time . | . . . . . . . Total Robot Build Rating . | . . . . . . . Part Schematics Acquired 26 | . . . . 6 3 17 Parts Built . | . . . . . . . Authchips . | . . . . . . . Time . | . . . . . . . Total Part Build Rating . | . . . . . . . Part Studies Acquired . | . . . . . . . Parts Repaired . | . . . . . . . Time . | . . . . . . . Parts Recycled . | . . . . . . . Recycled Matter . | . . . . . . . Retrieved Matter . | . . . . . . . Retrieved Components 9 | . . . . 9 . . Parts Scanalyzed . | . . . . . . . Part Schematics Acquired . | . . . . . . . Parts Damaged . | . . . . . . . Bothacking | -11 -10 -10 -10 -8 -8 -6 ------------ Run | Yrd Mat Min Sub Rec Scr Fac Used RIF Installer . | . . . . . . . Robots Hacked . | . . . . . . . Non-combat . | . . . . . . . Combat . | . . . . . . . Robot Hacks Applied . | . . . . . . . Relay Couplers Released . | . . . . . . . Fabnet Peak Effective % . | . . . . . . . Robots Rewired 5 | . . . . 5 . . Allies Hacked . | . . . . . . . Hacks Repelled . | . . . . . . . Allies | -11 -10 -10 -10 -8 -8 -6 -------- Run | Yrd Mat Min Sub Rec Scr Fac Total Allies 16 | . . . 11 5 . . Largest Group 10 | . . . 10 7 6 6 Highest-Rated Group 190 | . . . 190 133 97 97 Highest-Rated Ally 27 | . . . 19 27 27 27 Total Orders . | . . . . . . . Ally Attacks 42 | . . . 17 25 . . Total Damage 622 | . . . 244 378 . . Kills 3 | . . . . 3 . . Allies Corrupted . | . . . . . . . Allies Melted . | . . . . . . . Intel | -11 -10 -10 -10 -8 -8 -6 ------- Run | Yrd Mat Min Sub Rec Scr Fac Active Infowar (turns) 15757 | . . . 8610 2793 1955 2399 Structural 14142 | . . . 8610 2793 1955 784 Machine Analysis 2398 | . . . . . . 2398 ECM 1 | . . . . . . 1 Robot Analysis Total . | . . . . . . . Derelict Logs Recovered 5 | . . 1 1 . 3 . Drone Launches . | . . . . . . . Drone Recoveries . | . . . . . . . Exploration | -11 -10 -10 -10 -8 -8 -6 ------------- Run | Yrd Mat Min Sub Rec Scr Fac Turns Passed 21498 | 58 1921 1920 10308 2793 1955 2543 Spaces Moved 7110 | 31 850 768 3124 1035 680 622 Core 29 | 15 . . . . . 14 Treads 7081 | 16 850 768 3124 1035 680 608 Legs . | . . . . . . . Wheels . | . . . . . . . Hover . | . . . . . . . Flight . | . . . . . . . Fastest Speed 50 | 50 160 160 240 250 250 160 Average Speed 253 | 121 160 232 288 255 250 239 Slowest Speed 1350 | 200 160 240 460 260 250 1350 Overloaded Moves . | . . . . . . . Propulsion Burnouts . | . . . . . . . Robots Hopped . | . . . . . . . Potential Cave-ins 10 | . . . 10 . . . Cave-ins Triggered . | . . . . . . . Exploration Rate (%) 66 | 3 97 99 97 99 52 20 Regions Visited 6 Branch Regions 4 Pre-discovered Areas 1 | . . . 1 . . . Known Exits Taken 6 | 1 1 1 1 1 1 . Unknown Exits Taken . | . . . . . . . Scrap Searched 22 | . . 1 16 . 5 . Spaces Dug 65 | . 3 1 59 . . 2 Terrain Destroyed 172 | . 3 1 76 2 . 90 Melee 2 | . . . . . . 2 Projectile 89 | . 3 1 76 2 . 7 AOE 81 | . . . . . . 81 Terrain Rammed . | . . . . . . . Walls Destroyed . | . . . . . . . Machines Disabled . | . . . . . . . Actions | -11 -10 -10 -10 -8 -8 -6 --------- Run | Yrd Mat Min Sub Rec Scr Fac Total 9876 | 47 1316 844 4112 1175 939 1443 Wait 2131 | . 401 43 765 88 252 582 Move 7104 | 30 849 767 3123 1034 679 622 Hop . | . . . . . . . Pick Up 73 | 8 11 2 20 17 3 12 Fast Attach 13 | 1 . . . . 1 11 Attach 37 | 6 1 . 9 2 . 19 Detach 9 | . . . 3 2 1 3 Swap 26 | . 3 3 12 1 . 7 Drop 41 | . 2 2 21 3 3 10 Fire 407 | 2 49 19 159 5 . 173 Melee 4 | . . . . . . 4 Ram . | . . . . . . . Kick . | . . . . . . . Crush 9 | . . 8 . 1 . . Escape Stasis . | . . . . . . . Rewire 22 | . . . . 22 . . Trap . | . . . . . . . Miscellaneous . | . . . . . . . Route ------- -11/Scrapyard -10/Materials (discovered 4 exits: *Mat x3 / *Min) -10/Mines (discovered 3 exits: *Mat x2 / *Sub) -10/Subcaves (discovered 3 exits: *Mat x2 / *Rec) -8/Recycling (discovered 2 exits: *Fac / *Scr) -8/Scraptown -6/Factory (discovered 1 exit: Fac) History --------- Turn | Location | Event 29 | -11/Scrapyard | Identified exit to Materials 29 | -11/Scrapyard | Discovered exit to Materials (range 14) 59 | -11/Scrapyard | Entered Materials 59 | -10/Materials | Evolved 1 slot: Utility x1 307 | -10/Materials | Build established: Hacker-Mutant 345 | -10/Materials | Identified exit to Mines 345 | -10/Materials | Discovered exit to Mines (range 13) 606 | -10/Materials | Identified exit to Materials 606 | -10/Materials | Discovered exit to Materials (range 16) 872 | -10/Materials | Discovered exit to Materials (range 6) 1679 | -10/Materials | Discovered exit to Materials (range 8) 1980 | -10/Materials | Entered Mines 2008 | -10/Mines | Discovered exit to Materials (range 7) 2080 | -10/Mines | A weapon hastily lodged in a ceiling crevice suddenly fell to the ground 2103 | -10/Mines | Discovered exit to Materials (range 11) 2368 | -10/Mines | Learned Materials trap positions 2447 | -10/Mines | Found a Scrap Suit stashed away for nefarious purposes 2452 | -10/Mines | Found Scrap Suit 3151 | -10/Mines | Identified exit to Subcaves 3151 | -10/Mines | Discovered exit to Subcaves (range 9) 3900 | -10/Mines | Entered Subcaves 3900 | -10/Subcaves | Identified exit to Recycling 3900 | -10/Subcaves | Discovered exit to Recycling (range 11) 3901 | -10/Subcaves | Approached by a straggling Scientist 4191 | -10/Subcaves | A swath of the cavern ceiling suddenly collapsed 5335 | -10/Subcaves | Shifting Twisted Machinery released Sub. Laser 5573 | -10/Subcaves | Identified exit to Materials 5573 | -10/Subcaves | Discovered exit to Materials (range 16) 5937 | -10/Subcaves | Core integrity fell below 50% 5981 | -10/Subcaves | A swath of the cavern ceiling suddenly collapsed 6044 | -10/Subcaves | Learned location of Zion (-7) 6044 | -10/Subcaves | Met a Zionite searching for "candidates" 6082 | -10/Subcaves | Discovered exit to Materials (range 6) 6089 | -10/Subcaves | Shifting Twisted Machinery released Sub. Laser 6341 | -10/Subcaves | Visited 4L-MR0's lab 6391 | -10/Subcaves | Found Arachnoskeleton 6856 | -10/Subcaves | Visited triangular shrine 6870 | -10/Subcaves | Found Prototype Device 6871 | -10/Subcaves | Identified V3-11A's Pendant 6876 | -10/Subcaves | Befriended Subdweller 7466 | -10/Subcaves | Befriended Subdweller 7606 | -10/Subcaves | Befriended Subdweller 7912 | -10/Subcaves | Build established: Derelict-Mutant 8061 | -10/Subcaves | Befriended Subdweller 8061 | -10/Subcaves | Befriended Subdweller 8108 | -10/Subcaves | Learned Materials trap positions 8744 | -10/Subcaves | Shifting Twisted Machinery released Sub. Beam Cannon 8746 | -10/Subcaves | Shifting Twisted Machinery released Battle Rifle 8814 | -10/Subcaves | Shifting Twisted Machinery released Battle Cannon 9657 | -10/Subcaves | Ambushed by Subdweller buried in earth 9661 | -10/Subcaves | Befriended Subdweller 10491 | -10/Subcaves | Befriended Subdweller 10496 | -10/Subcaves | Befriended Subdweller 10511 | -10/Subcaves | Befriended Subdweller 10621 | -10/Subcaves | Befriended Subdweller 10746 | -10/Subcaves | Visited Clippyterm 10831 | -10/Subcaves | Befriended Subdweller 13908 | -10/Subcaves | Found SUBCON Basin 14208 | -10/Subcaves | Entered Recycling 14208 | -8/Recycling | Accompanied by 7 allies 14214 | -8/Recycling | Build established: Hacker-Mutant 14760 | -8/Recycling | Scanned before Scraplab entrance 14791 | -8/Recycling | Identified exit to Scraptown 14791 | -8/Recycling | Discovered exit to Scraptown (range 11) 14799 | -8/Recycling | Entered Scraplab 14920 | -8/Recycling | Tech Extrapolator generated special schematic: Deep Structural Scanner 14994 | -8/Recycling | Identified exit to Factory 14994 | -8/Recycling | Discovered exit to Factory (range 15) 15655 | -8/Recycling | Build established: Commander-Mutant 17001 | -8/Recycling | Entered Scraptown 17001 | -8/Scraptown | Accompanied by 6 allies 17352 | -8/Scraptown | Visited IN-MT5's Study 17382 | -8/Scraptown | Tech Extrapolator generated special schematic: Machine Rigger 17404 | -8/Scraptown | Visited CPS Storage 17452 | -8/Scraptown | Visited Red Mages 17519 | -8/Scraptown | Visited Fellowship of the Rings 17559 | -8/Scraptown | Visited Awakened 17574 | -8/Scraptown | Visited Cyclists 17824 | -8/Scraptown | Scanned Subdweller tech in exchange for log data 17836 | -8/Scraptown | Learned Research emergency access door positions 17843 | -8/Scraptown | Learned 8 Factory zone layouts 17846 | -8/Scraptown | Learned 12 Research zone layouts 17951 | -8/Scraptown | Discovered exit to Factory (range 11) 18168 | -8/Scraptown | Delivered Broken V3-11A's Pendant to T0-NE2 in exchange for information 18956 | -8/Scraptown | Entered Factory 18956 | -6/Factory | Accompanied by 6 allies 18956 | -6/Factory | Evolved 8 slots: Power x1, Propulsion x3, Utility x4 18957 | -6/Factory | Identified exit to Factory 19558 | -6/Factory | Lost 4 allies 19807 | -6/Factory | Build established: Hacker-Mutant 20115 | -6/Factory | Allied Derelicts emerged from ambush trap array 20251 | -6/Factory | Cargo convoy interrupted 20344 | -6/Factory | Lost 13 parts (2p4n4u3w) 20659 | -6/Factory | Build established: Scavenger-Mutant 21206 | -6/Factory | Core integrity fell below 50% 21467 | -6/Factory | Core integrity fell below 20% 21499 | -6/Factory | Destroyed by H-66 Slayer with Gauss Rifle Last Messages --------------- 21480_ Penetrated by Slug. 21480_ K-01 Serf collects debris. 21482_ Penetrated by Slug. 21482_ Slug penetrates Wall. 21483_ K-01 Serf collects debris. 21484_ Penetrated by Slug. 21484_ Machine Analyzer destroyed. 21484_ K-01 Serf collects debris. 21485_ Penetrated by Slug. 21486_ K-01 Serf collects debris. 21489_ Slug penetrates Fabricator. 21490_ Penetrated by Slug. 21490_ Arc Projector destroyed. 21491_ K-01 Serf collects debris. 21493_ Slug penetrates Fabricator. 21493_ Penetrated by Slug. 21495_ K-01 Serf collects debris. 21496_ Slug penetrates Fabricator. 21498_ K-01 Serf collects debris. 21499_ Slug penetrates Fabricator. Map ----- +----------------------------------------------------+ | ?????????????????????????????????????????????????? | | ?????????????????????????????????????????????????? | | ?????????????????????????????????????????????????? | | ?????????????????????????????????????????????????? | | ?????????????????????????????????????????????????? | | ?????????????????????????????????????????????????? | | ?????????????????????????????????????????????????? | | ????????????????????????????????????"""??????????? | | ??????????????????????????????????"""""???#??????? | | ??????????????????????????????????"""""??? ?????? | | ????????????????????????? ??????????????? ????? | | ????????????????????????# ????????"""??? ? ???? | | ????????????????????????# ??????"""""???? ??? | | ????????????????????????# #?????"""""??? ?? | | ????????????????????????# #??????? ???# # | | ????????????????????????# ##???####+#### | | ????????????????????????# ?? ???????# | | ????????????????????????? ! ???????? | | ????????????????????????? """"" ???????? | | ????????????????????????? """F""^ ??#??? | | ?????????????????????????# """ ""h h ?? #??? | | ?????????????????????????# A ##+##+#### | | ?????????????????????????# % # | | ?????????????????????????# %% "" # """ " | | ??????????????????????#+## % """"" # """ " | | ??????????????????????# @ % """"" # """ " | | ??????????????????????# % % % # "" | | ????????????########### % """ # "" | | ??????????? % k%%^ """"" / ! | | ??????????? % ^^^ ^%"""" # | | ??????????? % %% % % # | | ?????????????######## % ! % # "T"" | | ????????????????????# % k % # """" | | ????????????????????# # | | ????????????????????# % #############+### | | ????????????????????# #???????????# #?? | | ????????????????????# % % #???????????# #?? | | ????????????????????# #???????????# #?? | | ????????????????????# ########???????????# #?? | | ????????????????????# %???????????????????? #?? | | ????????????????????# % ???????????????????? #?? | | ????????????????????# ???????????????????? ??? | | ????????????????????# ???????????????????? ??? | | ????????????????????+ ???????????????????? ??? | | ??????????????????? # ???????????????????? ??? | | ????????????????????# ???????????????????? ??? | | ????????????????????# ????????????????????????? | | ?????????????????????? ????????????????????????? | | ???????????????????????? ????????????????????????? | | ?????????????????????????????????????????????????? | +----------------------------------------------------+ Best States ------------- Heat Dissipation 78 Energy Generation 31 Energy Capacity 500 Matter Stores 300 Matter Capacity 300 Sight Range 16 Terrain Scan Density 10 Armor Coverage 550 Resistance: KI 35 Resistance: TH 35 Resistance: EX 35 Resistance: EM 35 Resistance: I 35 Resistance: S 35 Resistance: P 35 Evasion (%) 50 Core Analysis 6 Armor Integrity Analysis 30 Recoil Reduction 5 Offensive Hacking 20 Authchip Count 8 Item Schematics ----------------- Deep Structural Scanner | -8/Recycling | Extrapolated Mak. Leg | -8/Recycling | Extrapolated Mak. Coolant Network | -8/Recycling | Extrapolated Mak. Light Armor Plating | -8/Recycling | Extrapolated Barrage Gun | -8/Recycling | Extrapolated Mak. Laser | -8/Recycling | Extrapolated Spk. Treads | -8/Scraptown | Extrapolated Machine Rigger | -8/Scraptown | Extrapolated 0b10 Decoder Chip [Scout] | -8/Scraptown | Extrapolated Spk. Medium Treads | -6/Factory | Extrapolated Imp. Heavy Treads | -6/Factory | Hacked Arm. Medium Treads | -6/Factory | Hacked Beamcaster | -6/Factory | Extrapolated Hvy. Beamcaster | -6/Factory | Extrapolated Hvy. Gauss Cannon | -6/Factory | Hacked Dispersion Rifle | -6/Factory | Hacked Mak. Trap Scanner | -6/Factory | Extrapolated Tactical Coordination Suite | -6/Factory | Extrapolated Mak. Thermal Plating | -6/Factory | Extrapolated Mak. Power Source | -6/Factory | Extrapolated Mak. ECM Suite | -6/Factory | Extrapolated Multitool | -6/Factory | Extrapolated Humpback | -6/Factory | Extrapolated Hyb. Antimatter Reactor | -6/Factory | Hacked Mak. Propulsion Shielding | -6/Factory | Extrapolated Mak. Hacking Suite | -6/Factory | Extrapolated Robot Schematics ------------------ H-55 Commando | -6/Factory | Hacked Fabricated ------------ Nothing Repaired ---------- Nothing Studied --------- None Alien Tech Used ----------------- None Achievements -------------- None Challenges ------------ None Game ------ Seed HoverStasisUnit Manual? 0 Play Time 01:00:37 Cumulative 245.8 hours Start 2026.01.05 @ 10:30:20 End 2026.01.05 @ 11:30:54 Sessions 1 Manual Loads 0 Difficulty Explorer Special Mode None Game No. 389 Rogue 0 Adventurer 0 Explorer 389 Win Type - Total 0 Types 0/0/0/0/0/0/0/0/0/0 Lore% 71 Gallery% 69 Achievement% 54 Wizard Run 0 Options --------- Layout 1 ASCII 0 Keyboard 0 Movement Mouse Keybinds 0 Fullscreen 1 Font 24/Smallcaps Map View 50x35 Zoom Use 0% Tactical HUD 1 Map Filters NONE Filters NONE Steam 1 RUN: b0188189-4522-4eec-b780-6042056e476d